[Event "2nd Serbia Open Masters 2022"]
[Site "Novi Sad"]
[Date "2022.07.01"]
[Round "4.2"]
[White "Motylev, Alexander"]
[Black "Ioannidis, Evgenios"]
[Result "1/2-1/2"]
[ECO "C81"]
[WhiteElo "2633"]
[BlackElo "2459"]
[Annotator "TA"]
[PlyCount "68"]
[EventDate "2022.06.28"]
[EventType "swiss"]
[EventCountry "SRB"]
[SourceTitle "playchess.com"]
[Source "ChessBase"]
[SourceQuality "1"]
[TimeControl "40/5400+30:900+30"]

{[%evp 30,68,33,12,18,5,10,2,11,15,0,0,15,23,29,31,39,36,41,37,28,30,69,65,78,73,116,81,84,93,136,71,93,18,16,16,15,0,0,0,0]} 1. e4 {[%emt 0:00:03]} e5 {[%emt 0:00:22]} 2. Nf3 {[%emt 0:00:06]} Nc6 {[%emt 0:00:16]} 3. Bb5 {[%emt 0:00:06][%cal Bf1b5,Bb5a4,Ba4b3,Bb3c4][%mdl 32]} a6 {[%emt 0:00:23]} 4. Ba4 {[%emt 0:00:05]} Nf6 {[%emt 0:00:28]} 5. O-O {[%emt 0:00:08]} Nxe4 {[%emt 0:01:42]} 6. d4 {[%emt 0:00:43]} b5 {[%emt 0:00:34]} 7. Bb3 {[%emt 0:00:10]} d5 {[%emt 0:00:20]} 8. dxe5 {[%emt 0:00:07]} Be6 {[%emt 0:00:14]} 9. Qe2 {[%emt 0:00:12]} Be7 {[%emt 0:03:04]} 10. Rd1 {[%emt 0:00:55]} O-O {[%emt 0:00:36]} 11. c4 {[%emt 0:00:36]} bxc4 {[%emt 0:00:43]} 12. Bxc4 {[%emt 0:00:06]} Bc5 {[%emt 0:00:26]} 13. Be3 {[%emt 0:00:12]} Bxe3 {[%emt 0:00:34]} 14. Qxe3 {[%emt 0:00:05]} Qb8 {[%emt 0:00:21]} 15. Bb3 {[%emt 0:00:15]} Na5 {[%emt 0:00:42]} 16. Nbd2 {[%emt 0:00:39]} Nxb3 {[%emt 0:00:35] C81: Open Ruy Lopez: Keres Variation (9 Qe2).} 17. axb3 {[%emt 0:00:52]} Qa7 {[%emt 0:14:57]} 18. Nxe4 {[%emt 0:01:32]} Qxe3 {[%emt 0:01:43]} 19. fxe3 {[%emt 0:00:18]} dxe4 {[%emt 0:00:05]} 20. Nd4 {[%emt 0:00:04]} Rfb8 {[%emt 0:09:39]} 21. Rdc1 {[%emt 0:02:10]} Rb7 {[%emt 0:27:07]} 22. Ra3 {[%emt 0:27:57] [#]} h6 $146 {[%emt 0:04:40]} ({Predecessor:} 22... g6 23. Kf2 Rab8 24. Rxa6 Bxb3 25. Kg3 Bd5 26. Rc5 c6 27. Nxc6 Bxc6 28. Raxc6 Rb3 {½-½ (57) Liang,A (2592)-Abdusattorov,N (2634) chess24.com INT 2021}) 23. Kf2 {[%emt 0:05:34]} Rab8 {[%emt 0:01:27]} 24. Kg3 {[%emt 0:03:57]} Rb6 {[%emt 0:02:20]} 25. b4 {[%emt 0:29:28]} Bd5 {[%emt 0:05:00]} 26. b5 {[%emt 0:04:53] White is more active.} axb5 {[%emt 0:06:52]} 27. Rxc7 {[%emt 0:00:13]} Re8 {[%emt 0:04:05]} 28. Rc5 {[%emt 0:12:49]} (28. Kf4 {looks sharper.} f6 29. e6 Bxe6 30. Nxe6 Rbxe6 31. Raa7) 28... Rxe5 {[%emt 0:01:37] [#]} 29. h4 $1 {[%emt 0:00:50] Inhibits Rg5+.} g5 {[%emt 0:09:14]} 30. Ra5 {[%emt 0:05:22]} (30. h5 $142) 30... gxh4+ {[%emt 0:01:04] [#]} 31. Kxh4 {[%emt 0:02:43]} ({White should try} 31. Kf4 $1 $16 {[%cal Rf4e5]} f6 32. Ra7) 31... Rg6 {[%emt 0:01:25] The position is equal.} 32. Raxb5 {[%emt 0:02:36]} Reg5 {[%emt 0:00:06][%cal Og5g2]} 33. Rxd5 {[%emt 0:00:37]} Rxg2 {[%emt 0:00:28][%cal Rg2h2]} 34. Kh3 {[%emt 0:00:20] Against Rh2+. Black must now prevent Nf5.} R2g3+ {[%emt 0:00:43] Weighted Error Value: White=0.11 (very precise) /Black=0.11 (very precise)} 1/2-1/2

[Event "2nd Serbia Open Masters 2022"]
[Site "Novi Sad"]
[Date "2022.07.01"]
[Round "4.3"]
[White "Adhiban, B.."]
[Black "Babazada, Khazar"]
[Result "1-0"]
[ECO "D10"]
[WhiteElo "2616"]
[BlackElo "2431"]
[Annotator "TA"]
[PlyCount "75"]
[EventDate "2022.06.28"]
[EventType "swiss"]
[EventCountry "SRB"]
[SourceTitle "playchess.com"]
[Source "ChessBase"]
[SourceQuality "1"]
[TimeControl "40/5400+30:900+30"]

{[%evp 13,75,7,7,13,13,10,15,13,20,8,9,8,9,7,33,30,29,38,32,30,18,26,27,33,31,24,22,22,27,27,57,53,36,58,50,43,40,40,56,55,78,67,65,50,62,71,59,48,79,63,544,547,547,528,472,522,560,560,560,560,554,552,29995,29996]} 1. d4 {[%emt 0:00:07]} d5 {[%emt 0:04:09]} 2. c4 {[%emt 0:00:06]} c6 {[%emt 0:00:11]} 3. Nc3 {[%emt 0:03:10]} Nf6 {[%emt 0:01:47]} 4. cxd5 {[%emt 0:07:20]} cxd5 {[%emt 0:00:10]} 5. Bf4 {[%emt 0:00:03]} Nc6 {[%emt 0:00:15]} 6. e3 {[%emt 0:00:04]} Bf5 {[%emt 0:00:05]} 7. Qb3 {[%emt 0:00:04]} Na5 $1 {[%emt 0:00:25]} 8. Qa4+ {[%emt 0:00:02] D10: Slav Defence: 3 cxd5 (without early Nf3) and 3 Nc3.} Bd7 {[%emt 0:00:06]} 9. Qc2 {[%emt 0:00:04] Threatening Nb5.} (9. Bb5 {with more complications.} e6 10. Nf3 a6 11. Bxd7+ Nxd7 12. O-O) 9... e6 {[%emt 0:00:15]} 10. Nf3 {[%emt 0:03:22] The position is equal.} Be7 {[%emt 0:04:19]} 11. h3 {[%emt 0:01:37]} Rc8 {[%emt 0:04:19][%cal Of6e4]} 12. Bd3 {[%emt 0:00:13] Inhibits Ne4.} b5 {[%emt 0:06:25]} 13. a3 {[%emt 0:03:24]} Nc4 {[%emt 0:00:17]} 14. O-O {[%emt 0:00:21]} (14. Ne5 {seems wilder.} a5 15. Qe2 O-O 16. O-O) 14... a5 {[%emt 0:12:50]} 15. Qe2 {[%emt 0:08:45]} Nxa3 {[%emt 0:20:49][%cal Oe8g8]} 16. Nxb5 {[%emt 0:01:49]} Nxb5 {[%emt 0:02:55]} 17. Bxb5 {[%emt 0:00:44]} Qb6 {[%emt 0:00:13]} 18. Bd3 {[%emt 0:03:02]} O-O {[%emt 0:05:26]} 19. Ne5 {[%emt 0:01:44]} Be8 {[%emt 0:00:31] [#]} 20. Bg5 $146 {[%emt 0:14:39][%cal Bf4g5,Bg5h4,Bh4g3][%mdl 32]} ({Predecessor:} 20. Rfc1 Rxc1+ 21. Rxc1 Ba4 22. Bg5 h6 23. Bh4 Rb8 24. Ng4 Qd8 25. Bxf6 Bxf6 26. Nxf6+ Qxf6 {½-½ (35) Sokolov,I (2645)-Giri,A (2687) Boxtel 2011}) 20... h6 {[%emt 0:02:49]} 21. Bh4 {[%emt 0:00:11]} g5 {[%emt 0:04:06]} 22. Bg3 {[%emt 0:00:37]} Ne4 {[%emt 0:00:53]} 23. Bxe4 {[%emt 0:02:21]} dxe4 {[%emt 0:00:18]} 24. Rfc1 $1 {[%emt 0:10:39]} Rxc1+ {[%emt 0:00:48]} (24... Bb5 $2 25. Qh5 Rxc1+ 26. Rxc1 $18) 25. Rxc1 {[%emt 0:00:01] [#] Hoping for Qh5.} f6 {[%emt 0:00:18]} 26. Nc4 {[%emt 0:18:58]} Qd8 {[%emt 0:00:22]} 27. Qg4 {[%emt 0:05:55] White is more active.} f5 {[%emt 0:01:16]} 28. Qd1 {[%emt 0:00:03]} f4 {[%emt 0:02:32]} 29. exf4 {[%emt 0:04:31]} gxf4 {[%emt 0:00:52]} 30. Qg4+ {[%emt 0:00:22]} Bg5 {[%emt 0:00:24]} (30... Kh8 $2 31. Bxf4 Kh7 32. Be5 $18) 31. h4 {[%emt 0:01:00][%cal Bh3h4,Bh4g5][%mdl 32]} ({But not} 31. Qxe6+ $2 Bf7 32. Qe5 Re8 $19) 31... Bh5 $2 {[%emt 0:11:11][%mdl 8192] Loses the game.} 32. Qxh5 $18 {[%emt 0:01:00] [#] Threatens to win with Qg6+.} fxg3 {[%emt 0:00:04]} 33. Qg6+ {[%emt 0:01:55]} Kh8 {[%emt 0:00:07]} 34. hxg5 {[%emt 0:00:07] White threatens Ne5 and mate.} gxf2+ {[%emt 0:00:59]} 35. Kf1 {[%emt 0:00:23]} Qxd4 {[%emt 0:00:39][%cal Rd4d3]} 36. Qxh6+ {[%emt 0:00:14]} Kg8 {[%emt 0:00:01][%cal Rd4d3]} 37. Qxe6+ {[%emt 0:00:37]} Rf7 {[%emt 0:00:23][%cal Rd4d3]} 38. Ne5 {[%emt 0:00:41] Inhibits Qd3+.  Weighted Error Value: White=0.03 (flawless) /Black=0.40} 1-0

[Event "2nd Serbia Open Masters 2022"]
[Site "Novi Sad"]
[Date "2022.07.01"]
[Round "4.4"]
[White "Santiago, Yago De Moura"]
[Black "Can, Emre"]
[Result "0-1"]
[ECO "D43"]
[WhiteElo "2498"]
[BlackElo "2599"]
[Annotator "TA"]
[PlyCount "62"]
[EventDate "2022.06.28"]
[EventType "swiss"]
[EventCountry "SRB"]
[SourceTitle "playchess.com"]
[Source "ChessBase"]
[SourceQuality "1"]
[TimeControl "40/5400+30:900+30"]

{[%evp 13,62,16,8,-42,-29,-43,-43,-28,-44,-37,-41,-50,0,0,0,-20,-14,0,-2,-8,0,-22,-10,-89,-68,-103,-103,-108,-101,-119,-65,-60,-75,-127,-66,-563,-539,-631,-622,-917,-918,-1295,-440,-434,-428,-501,-354,-652,-653,-607,-606]} 1. d4 {[%emt 0:00:13]} d5 {[%emt 0:00:17]} 2. c4 {[%emt 0:00:14]} e6 {[%emt 0:00:33]} 3. Nf3 {[%emt 0:00:25]} Nf6 {[%emt 0:00:40]} 4. Nc3 {[%emt 0:00:15]} c6 {[%emt 0:00:30]} 5. Qd3 {[%emt 0:00:23]} dxc4 {[%emt 0:00:41]} 6. Qxc4 {[%emt 0:00:09]} b5 {[%emt 0:00:17]} 7. Qd3 {[%emt 0:00:09]} a6 {[%emt 0:00:26]} 8. g4 {[%emt 0:00:13] is currently scoring better than 8.e4. D43: Semi-Slav: 5 Bg5 h6.} (8. e4 $11) 8... Nxg4 $15 {[%emt 0:01:35]} 9. Rg1 {[%emt 0:01:29]} Nf6 {[%emt 0:00:22]} 10. Bf4 {[%emt 0:01:55] Black is slightly better.} Nbd7 {[%emt 0:03:35] [#]} 11. e4 $146 {[%emt 0:03:06][%cal Be2e4,Be4e5][%mdl 32]} ({Predecessor:} 11. O-O-O Bb7 12. e4 Be7 13. Qc2 Rc8 14. Kb1 b4 15. Ne2 O-O 16. Bh6 Ne8 17. Ng5 {½-½ (32) Enev,Z (2393)-Hughes,S (2276) LSS email 2021}) 11... Nh5 {[%emt 0:15:01]} 12. Bg5 {[%emt 0:05:54]} Be7 {[%emt 0:03:28]} (12... Qc7 $15) 13. e5 $11 {[%emt 0:03:21]} c5 {[%emt 0:20:34]} 14. Qe4 {[%emt 0:57:40] Prevents Bb7.} Ra7 {[%emt 0:16:51]} 15. Qh4 {[%emt 0:01:35]} g6 {[%emt 0:00:30] Strongly threatening ...Bxg5.} 16. Ne4 {[%emt 0:00:06]} f6 $1 {[%emt 0:02:00]} 17. exf6 {[%emt 0:02:22]} Ndxf6 {[%emt 0:02:10]} 18. Nxc5 {[%emt 0:03:50]} ({But not} 18. dxc5 Nxe4 19. Qxe4 Bxg5 20. Nxg5 Qa5+ 21. b4 Qa3 $17) (18. Nxf6+ $11 Nxf6 19. dxc5) 18... O-O {[%emt 0:03:03][%cal Oe6e5] Threatens to win with ...e5!} 19. Be2 {[%emt 0:08:32]} Qd5 {[%emt 0:04:56]} 20. Rd1 {[%emt 0:00:08]} Ng7 {[%emt 0:02:30]} 21. Ne5 {[%emt 0:03:54]} Nf5 {[%emt 0:03:47]} (21... Qxa2 $17 {White must now prevent ...Nf5.} 22. Nc6 Nf5) 22. Qf4 $15 {[%emt 0:00:01]} Qxa2 {[%emt 0:06:00]} 23. Bh6 {[%emt 0:04:39] [#]} (23. Qc1 $142) 23... Nd5 {[%emt 0:06:13] The board is on fire.} ({Black should try} 23... Qxb2 $1 $17 24. Bxf8 Bxf8) 24. Qe4 $2 {[%emt 0:00:01][%mdl 8192] This costs White the game.} Bxc5 $19 {[%emt 0:01:52]} ({Inferior is} 24... Nxh6 25. Rxg6+ hxg6 26. Qxg6+ Kh8 27. Qxh6+ Kg8 28. Qg6+ Kh8 29. Qh6+ Kg8 30. Qg6+ Kh8 31. Qh6+ $11) 25. dxc5 {[%emt 0:00:25]} Nxh6 {[%emt 0:00:56] Pair of Knights!} 26. Nxg6 {[%emt 0:00:16]} Rg7 {[%emt 0:00:23] Prevents Ne7+.} 27. Rxd5 {[%emt 0:01:48]} hxg6 {[%emt 0:00:45]} (27... exd5 $142 28. Qd4 hxg6) 28. Rd2 {[%emt 0:00:55]} Nf5 {[%emt 0:00:48]} 29. h4 {[%emt 0:00:25]} Qa4 {[%emt 0:00:31]} 30. b4 $2 {[%emt 0:00:36] [#]} (30. Qxa4 bxa4 31. c6) 30... Qa1+ {[%emt 0:00:39]} 31. Bd1 {[%emt 0:00:07]} Qc3 {[%emt 0:00:34] Weighted Error Value: White=0.97/Black=0.40} 0-1

[Event "2nd Serbia Open Masters 2022"]
[Site "Novi Sad"]
[Date "2022.07.01"]
[Round "4.5"]
[White "Sturt, Raven"]
[Black "Predke, Alexandr"]
[Result "1/2-1/2"]
[ECO "D35"]
[WhiteElo "2438"]
[BlackElo "2688"]
[Annotator "TA"]
[PlyCount "198"]
[EventDate "2022.06.28"]
[EventType "swiss"]
[EventCountry "SRB"]
[SourceTitle "playchess.com"]
[Source "ChessBase"]
[SourceQuality "1"]
[TimeControl "40/5400+30:900+30"]

{[%evp 11,198,14,19,21,18,19,22,30,37,35,27,0,0,-4,3,10,26,18,19,25,28,20,25,21,12,14,22,16,33,20,64,0,0,-37,-40,-40,-34,-43,-12,-7,0,0,18,18,18,17,23,20,27,29,87,88,84,76,82,91,94,74,71,46,51,58,70,36,85,60,68,0,9,17,43,43,44,40,102,102,102,102,102,102,102,102,102,81,95,95,102,102,102,95,95,95,102,95,102,95,95,95,95,95,95,95,95,95,95,88,95,95,95,95,95,95,95,95,102,95,102,95,95,95,95,95,95,95,102,0,95,95,95,95,95,95,102,95,95,95,95,95,95,0,102,95,102,95,102,102,102,102,102,102,102,102,102,102,102,103,104,75,75,79,80,14,14,14,14,14,14,5,14,8,8,0,0,0,0,0,0,0,0,0,0,0,0,0,0,0,0,0,0]} 1. d4 {[%emt 0:00:03] Ftacnik,L} Nf6 {[%emt 0:01:02]} 2. c4 {[%emt 0:00:04]} e6 {[%emt 0:00:04]} 3. Nf3 {[%emt 0:00:03]} d5 {[%emt 0:00:04]} 4. Nc3 {[%emt 0:00:04]} Nbd7 {[%emt 0:00:05]} 5. Bf4 {[%emt 0:00:18]} Bb4 {[%emt 0:00:19]} 6. cxd5 {[%emt 0:07:01]} exd5 {[%emt 0:00:12]} 7. Qb3 {[%emt 0:03:05] D35: Queen's Gambit Declined: Exchange Variation.} c5 {[%emt 0:02:12]} 8. dxc5 {[%emt 0:01:24]} Qa5 {[%emt 0:02:38]} 9. a3 {[%emt 0:07:12]} Bxc3+ {[%emt 0:00:21]} 10. bxc3 {[%emt 0:04:00] [#]} Ne4 $146 {[%emt 0:02:54]} ({Predecessor:} 10... Qxc5 11. Qb4 Ne4 12. Nd4 b6 13. f3 a5 14. Qxc5 Nexc5 15. Nf5 Ne6 16. Bg3 g6 {1-0 (50) Aronian,L (2754)-Eljanov,P (2693) Nalchik 2009 CBM 130 [Ftacnik,L]}) 11. Nd2 {[%emt 0:03:40]} Nxd2 {[%emt 0:17:08]} (11... Qxc3 12. Qxc3 Nxc3 13. Rc1 $16) 12. Bxd2 {[%emt 0:00:27]} O-O {[%emt 0:00:09]} 13. Be3 {[%emt 0:15:15]} Re8 {[%emt 0:01:10]} 14. Qb4 {[%emt 0:03:38]} Qc7 {[%emt 0:02:57]} 15. Bd4 {[%emt 0:03:57]} a5 {[%emt 0:16:12]} 16. Qb5 {[%emt 0:00:06]} a4 {[%emt 0:11:32]} 17. e3 {[%emt 0:00:18]} Ra5 {[%emt 0:00:04]} 18. Qb4 {[%emt 0:00:23]} Nxc5 {[%emt 0:00:15]} 19. Be2 {[%emt 0:01:02]} Re6 {[%emt 0:05:54]} 20. O-O {[%emt 0:01:46]} Nb3 {[%emt 0:06:29]} 21. Ra2 {[%emt 0:01:42]} (21. Rad1 $1 $14) 21... b6 $11 {[%emt 0:04:03]} 22. Re1 {[%emt 0:08:36]} Ba6 {[%emt 0:01:00]} (22... Rh6 23. g3 $11) 23. Bxa6 {[%emt 0:00:25]} Rxa6 {[%emt 0:00:03]} 24. Rae2 {[%emt 0:00:05]} Qc6 {[%emt 0:04:31]} 25. f3 $1 {[%emt 0:02:17]} Nc5 {[%emt 0:18:16]} 26. c4 {[%emt 0:04:59]} Nd3 {[%emt 0:01:46]} 27. cxd5 {[%emt 0:00:20]} Nxb4 {[%emt 0:00:24]} 28. dxc6 {[%emt 0:00:02]} Nxc6 {[%emt 0:00:01]} 29. Rc1 {[%emt 0:00:10]} h5 {[%emt 0:01:15]} 30. Kf2 {[%emt 0:02:00]} Na5 {[%emt 0:00:11]} (30... Ra8 $11 {keeps the balance.}) 31. Rc8+ $16 {[%emt 0:00:52]} Kh7 {[%emt 0:00:01]} 32. Rec2 $36 {[%emt 0:00:22][%mdl 2048] Hoping for R2c7. White is on the roll. White is more active.} Nb3 {[%emt 0:00:32]} 33. Bc3 {[%emt 0:17:22]} Nc5 {[%emt 0:01:20]} 34. Ke2 {[%emt 0:00:03] Against Nd3} Ra7 {[%emt 0:00:07]} 35. Bb4 {[%emt 0:14:59]} Na6 {[%emt 0:00:01]} 36. Bf8 {[%emt 0:00:00]} Rb7 {[%emt 0:01:30]} 37. R2c6 {[%emt 0:00:00]} Re5 {[%emt 0:01:15]} (37... Rb8 $14) 38. e4 {[%emt 0:00:00]} Rb5 {[%emt 0:00:30][%cal Oa6c5]} 39. Rc4 {[%emt 0:00:00] Prevents Nc5.} ({Better is} 39. h4 $1 $14) 39... Rb2+ {[%emt 0:00:10]} 40. Rc2 {[%emt 0:00:00]} Rxc2+ {[%emt 0:00:00]} 41. Rxc2 $11 {[%emt 0:00:00][%mdl 4096] Endgame KRB-KRN} b5 {[%emt 0:05:14]} 42. Rc6 {[%emt 0:00:00]} b4 {[%emt 0:02:27] [#]} 43. axb4 $1 $16 {[%emt 0:00:00]} ({But not} 43. Rxa6 $2 b3 44. Rd6 (44. Rxa4 $2 b2 $19) 44... b2 $19) 43... Nxb4 {[%emt 0:00:04]} 44. Rc4 {[%emt 0:00:00]} Na6 {[%emt 0:00:12]} 45. Rxa4 {[%emt 0:00:00]} Rb2+ {[%emt 0:00:03]} 46. Kf1 {[%emt 0:00:00]} Nc7 {[%emt 0:00:03]} 47. Ra5 {[%emt 0:01:17]} Ne6 {[%emt 0:01:34]} 48. Ba3 {[%emt 0:01:24]} ({Don't play} 48. Rxh5+ $6 Kg6 49. Rh8 Rb8 $11) 48... Rb1+ {[%emt 0:01:09]} 49. Kf2 {[%emt 0:00:06]} Kg6 {[%emt 0:00:28]} 50. Kg3 {[%emt 0:07:41]} f6 {[%emt 0:02:12]} 51. Bd6 {[%emt 0:00:17]} Ng5 {[%emt 0:01:24]} 52. Ra7 {[%emt 0:02:09]} Rb3 {[%emt 0:00:35] White must now prevent ...Nxe4+.} 53. Ra4 {[%emt 0:00:17]} Rd3 {[%emt 0:00:38]} 54. Bc7 {[%emt 0:00:37]} Rc3 {[%emt 0:00:30]} 55. Bf4 {[%emt 0:00:36]} Ne6 {[%emt 0:00:16][%cal Oh5h4]} 56. Bd6 {[%emt 0:01:40]} Rd3 {[%emt 0:00:18]} 57. Bb8 {[%emt 0:00:10]} Rb3 {[%emt 0:01:24] [#]} 58. Ba7 {[%emt 0:00:09]} Rb2 {[%emt 0:00:51]} 59. h4 {[%emt 0:01:10]} Rb3 {[%emt 0:00:23]} 60. Ra2 {[%emt 0:00:17]} Rd3 {[%emt 0:00:51]} 61. Kf2 {[%emt 0:00:29]} Rb3 {[%emt 0:00:11]} 62. Be3 {[%emt 0:00:07]} Rb4 {[%emt 0:00:20]} 63. Ke2 {[%emt 0:01:11]} Nd8 {[%emt 0:00:10]} 64. Ra6 {[%emt 0:00:09]} Nf7 {[%emt 0:00:18]} 65. Bf4 {[%emt 0:01:01]} Rb2+ {[%emt 0:00:04]} 66. Kf1 {[%emt 0:00:02]} Rb5 {[%emt 0:00:24]} 67. Re6 {[%emt 0:00:59]} Nd8 {[%emt 0:00:50]} 68. Ra6 {[%emt 0:01:37]} Nf7 {[%emt 0:00:07]} 69. Bc7 {[%emt 0:00:42]} Rc5 {[%emt 0:00:12]} 70. Ra7 {[%emt 0:00:05]} Rc4 {[%emt 0:00:43]} 71. Rb7 {[%emt 0:00:38]} Ra4 {[%emt 0:00:19]} 72. Kf2 {[%emt 0:00:10]} Ra2+ {[%emt 0:00:36]} 73. Kg3 {[%emt 0:00:06]} Rc2 {[%emt 0:00:05]} 74. Ba5 {[%emt 0:00:22]} Rc4 {[%emt 0:00:21]} 75. Bc7 {[%emt 0:01:27]} (75. Rc7 $16 Ra4 76. Rc5) 75... Rd4 {[%emt 0:00:20]} (75... Rc2 $11) 76. Bb8 {[%emt 0:00:14]} Ra4 {[%emt 0:00:25]} 77. Rb3 {[%emt 0:02:04]} Rc4 {[%emt 0:00:08]} 78. Rb5 {[%emt 0:00:39]} Ra4 {[%emt 0:00:06]} 79. Bf4 {[%emt 0:00:05]} Rc4 {[%emt 0:00:05]} 80. Kf2 {[%emt 0:00:58]} Rc2+ {[%emt 0:00:07]} 81. Kf1 {[%emt 0:00:01]} Rc3 {[%emt 0:00:16]} 82. Rd5 {[%emt 0:00:24]} Ra3 {[%emt 0:00:10]} 83. Bc7 {[%emt 0:00:18]} Ra4 {[%emt 0:01:05]} 84. g3 {[%emt 0:00:56]} Ra2 {[%emt 0:00:39]} 85. Rc5 {[%emt 0:00:48]} Rd2 {[%emt 0:00:39]} 86. f4 {[%emt 0:01:29]} ({White should try} 86. Bf4 $16 Rb2 87. Rd5) 86... Nh6 $11 {[%emt 0:00:14] The position is equal.} 87. f5+ {[%emt 0:00:04]} Kh7 {[%emt 0:00:16]} 88. Bf4 {[%emt 0:00:26]} Ra2 {[%emt 0:00:45]} 89. e5 {[%emt 0:02:50]} fxe5 {[%emt 0:00:05]} 90. Rxe5 {[%emt 0:00:05][%cal Of5f6] Threatens to win with f6!} (90. Bxh6 $5 gxh6 91. Rc7+ (91. Rxe5 Kg7 $11) 91... Kg8 92. Re7 $11) 90... Ng4 {[%emt 0:00:17]} 91. Rb5 {[%emt 0:00:04]} Nh2+ {[%emt 0:00:43]} 92. Ke1 {[%emt 0:00:02]} Nf3+ {[%emt 0:00:02]} 93. Kd1 {[%emt 0:00:07]} Ra1+ {[%emt 0:00:02]} 94. Bc1 {[%emt 0:00:10]} Nd4 {[%emt 0:00:14]} 95. Rd5 {[%emt 0:02:07]} Nb3 {[%emt 0:02:32]} 96. Kc2 {[%emt 0:00:11] Bb2 is the strong threat.} Rxc1+ {[%emt 0:00:34]} 97. Kxb3 {[%emt 0:00:06]} Rg1 {[%emt 0:00:05]} 98. Rd3 {[%emt 0:00:07]} Rf1 {[%emt 0:00:32]} 99. Kc4 {[%emt 0:00:18]} Rxf5 {[%emt 0:00:13] Weighted Error Value: White=0.07 (flawless) /Black=0.08 (flawless)} 1/2-1/2

[Event "2nd Serbia Open Masters 2022"]
[Site "Novi Sad"]
[Date "2022.07.01"]
[Round "4.6"]
[White "Ivic, Velimir"]
[Black "Shyaamnikhil P"]
[Result "1-0"]
[ECO "B41"]
[WhiteElo "2623"]
[BlackElo "2443"]
[Annotator "TA"]
[PlyCount "69"]
[EventDate "2022.06.28"]
[EventType "swiss"]
[EventCountry "SRB"]
[SourceTitle "playchess.com"]
[Source "ChessBase"]
[SourceQuality "1"]
[TimeControl "40/5400+30:900+30"]

{[%evp 13,69,27,58,37,48,25,44,28,72,40,46,46,47,41,47,37,37,43,42,45,65,62,63,15,96,7,11,10,90,75,159,157,172,152,145,158,166,162,172,179,191,187,190,187,253,201,353,286,281,282,267,274,272,270,257,200,166,162]} 1. e4 {[%emt 0:02:28]} c5 {[%emt 0:00:23]} 2. Nf3 {[%emt 0:00:18]} e6 {[%emt 0:00:44]} 3. d4 {[%emt 0:00:12]} cxd4 {[%emt 0:00:06]} 4. Nxd4 {[%emt 0:00:04]} a6 {[%emt 0:00:13]} 5. c4 {[%emt 0:00:30]} Nf6 {[%emt 0:00:18]} 6. Nc3 {[%emt 0:00:06]} Qc7 {[%emt 0:00:07]} 7. a3 {[%emt 0:01:49]} b6 {[%emt 0:01:26]} 8. f4 {[%emt 0:00:57][%cal Bf2f4,Bf4f5][%mdl 32] B41: Sicilian: Kan Variation: 5 c4.} Bb7 {[%emt 0:01:44]} 9. Bd3 {[%emt 0:00:25]} d6 {[%emt 0:16:19] [#] Prevents e5.} 10. f5 $146 {[%emt 0:03:34] White is slightly better.} ({Predecessor:} 10. O-O g6 11. Be3 Nbd7 12. Qf3 Bg7 13. Rac1 O-O 14. b4 Rac8 15. g4 h6 16. Qg3 {0-1 (73) Rifelj,L (1961)-Trussevich,S (2297) Slovenia 2019}) 10... Nc6 {[%emt 0:02:01]} 11. Nxc6 {[%emt 0:02:48]} (11. Be3 $5 {[%cal Rf5e6]}) 11... Bxc6 {[%emt 0:00:08]} 12. O-O {[%emt 0:01:52]} Be7 {[%emt 0:01:53]} 13. Qf3 {[%emt 0:03:44]} O-O {[%emt 0:08:18]} 14. fxe6 {[%emt 0:05:26]} fxe6 {[%emt 0:01:12][%cal Of6e4]} 15. Qh3 {[%emt 0:00:17]} Rf7 {[%emt 0:14:51]} 16. Be3 {[%emt 0:12:26]} (16. Qxe6 $2 Bd7 17. Nd5 Qc5+ 18. Be3 Qxe3+ 19. Nxe3 Bxe6 $19) 16... Qb7 {[%emt 0:05:05]} 17. b4 {[%emt 0:21:16]} (17. Qxe6 $2 Bd7 18. Rxf6 Bxe6 19. Rxe6 Qd7 20. Rxe7 Qxe7 $19) 17... Raf8 {[%emt 0:08:15] [#]} 18. c5 {[%emt 0:05:08]} (18. Qxe6 $2 Bd7 19. Rxf6 Bxe6 20. Rxe6 Qd7 21. Rxe7 Qxe7 $19) (18. Rxf6 $1 $14 {was preferrable.} gxf6 19. Qg4+ (19. Qxe6 f5 $11) 19... Kh8 20. Qxe6) 18... b5 {[%emt 0:09:30]} (18... dxc5 $11 {remains equal.} 19. bxc5 (19. Qxe6 cxb4 20. axb4 Bxb4 $11) 19... Bxc5) 19. Qxe6 {[%emt 0:03:43]} (19. e5 $1 $16 dxe5 20. Bc2) 19... Bd7 $11 {[%emt 0:10:39]} 20. Qa2 {[%emt 0:02:26][%cal Oe4e5] aiming for e5!} Qc8 {[%emt 0:03:26] [#]} (20... dxc5 $1 $11 21. e5 (21. Bxc5 Bxc5+ 22. bxc5 Qc7 $17) (21. bxc5 Qa7 $11) 21... Ng4 22. Rxf7 (22. Bxc5 Bxc5+ 23. bxc5 Qc6 $17) 22... Rxf7) 21. e5 $1 $16 {[%emt 0:05:49]} dxe5 {[%emt 0:00:12] [#]} ({Better is} 21... Be6 22. Qe2 dxe5) 22. Bc2 $1 $36 {[%emt 0:06:07][%mdl 2048] White is in control. White is much more active.} Be6 {[%emt 0:01:05]} 23. Bb3 {[%emt 0:00:04]} Bxb3 {[%emt 0:00:08]} 24. Qxb3 {[%emt 0:00:05]} Qc6 {[%emt 0:01:37]} 25. Rad1 {[%emt 0:01:24]} h6 {[%emt 0:05:22]} 26. h3 {[%emt 0:01:09]} Rd8 {[%emt 0:03:11]} 27. a4 {[%emt 0:03:37]} bxa4 {[%emt 0:01:07]} 28. Nxa4 {[%emt 0:00:11]} (28. Qxa4 Qxa4 29. Rxd8+ (29. Nxa4 Nd5 $11) 29... Bxd8 $11) 28... Re8 {[%emt 0:03:49]} (28... Qe4 {was called for.}) 29. Nb6 $18 {[%emt 0:02:05][%cal Ob6d7]} Bf8 $2 {[%emt 0:00:43] [#]} (29... Rd8 30. Rxd8+ Bxd8) 30. Rd7 $3 {[%emt 0:02:35][%mdl 512]} Qe6 {[%emt 0:00:25]} 31. Qxe6 {[%emt 0:00:08]} Rxe6 {[%emt 0:00:07]} 32. Rxf7 {[%emt 0:00:14]} Kxf7 {[%emt 0:00:07]} 33. Ra1 {[%emt 0:00:05]} Be7 {[%emt 0:00:16]} 34. Kf2 {[%emt 0:02:00]} ({Weaker is} 34. Rxa6 Nd5 35. Kf2 (35. Bd2 e4 $11) 35... Nxb4 $14) 34... Ne4+ {[%emt 0:00:52]} 35. Ke2 {[%emt 0:00:24] Weighted Error Value: White=0.14 (very precise) /Black=0.32} 1-0